bitfinex/quotes_SOLUSD_20240930
["timestamp","ask_amount","ask_price","bid_price","bid_amount"]
[1727689875183,6.4132,155.93,155.85,1.28332856]
[1727689875685,6.4132,155.93,155.87,6.4156]
[1727689876292,16.3928,155.94,155.84,16.20397754]
[1727689876469,8.65872343,155.92,155.82,16.20397754]
[1727689876979,30.316774,155.9,155.85,6.4164]
[1727689877379,23.902374,155.9,155.85,6.4164]
[1727689877766,2.0,155.87,155.72,44.027864]
[1727689877971,2.0,155.89,155.82,16.20397754]
[1727689878174,2.0,155.89,155.84,16.20397754]
[1727689878792,2.0,155.89,155.85,1.28319805]
[1727689878986,2.0,155.89,155.81,24.027864]
[1727689879189,2.0,155.87,155.8,16.20397754]
[1727689883085,2.0,155.85,155.79,19.56]
[1727689883285,2.0,155.85,155.79,13.3732]
[1727689884011,2.0,155.85,155.8,1.2836254]
[1727689884491,20.0,155.86,155.8,1.2836254]
[1727689885206,2.0,155.87,155.8,17.48760294]
[1727689886679,2.0,155.87,155.8,16.20397754]
[1727689887499,2.0,155.87,155.81,1.28338001]
[1727689888386,2.0,155.87,155.8,16.20397754]
[1727689888580,22.0,155.87,155.8,16.20397754]
[1727689888979,2.0,155.87,155.81,1.28338021]
[1727689889290,2.0,155.89,155.81,1.28338021]
[1727689889686,2.0,155.87,155.81,1.28338021]
[1727689889906,2.0,155.87,155.8,16.20397754]
[1727689890102,20.0,155.86,155.8,16.20397754]
[1727689891204,22.0,155.87,155.8,16.20397754]
[1727689892107,2.0,155.85,155.78,16.20397754]
[1727689895588,2.0,155.85,155.77,0.12549]
[1727689895589,2.0,155.85,155.81,10.37166435]
[1727689896611,18.1342,155.85,155.81,10.37166435]
[1727689898620,18.1342,155.85,155.79,10.37166435]
[1727689898910,2.0,155.83,155.79,10.37166435]
[1727689899501,8.4173,155.83,155.77,10.37166435]
[1727689900301,2.0,155.81,155.77,10.37166435]
[1727689902104,2.0,155.83,155.79,10.37166435]
[1727689902496,20.0,155.84,155.79,10.37166435]
[1727689903421,20.0,155.84,155.74,1.28364895]
[1727689903422,20.0,155.84,155.81,10.37166435]
[1727689906431,20.0,155.84,155.73,24.027864]
[1727689906432,20.0,155.84,155.79,10.37166435]
[1727689906909,2.0,155.81,155.72,20.0]
[1727689907107,2.0,155.81,155.71,6.1001]
[1727689907108,2.0,155.81,155.77,10.37166435]
[1727689908618,22.0,155.81,155.71,6.1001]
[1727689908824,37.4461,155.79,155.73,10.37166435]
[1727689909207,2.0,155.77,155.73,10.37166435]
[1727689912521,2.0,155.77,155.71,10.37166435]
[1727689912732,2.0,155.75,155.7,10.37166435]
[1727689913317,2.0,155.75,155.72,10.37166435]
[1727689913513,2.0,155.77,155.72,10.37166435]
[1727689917833,2.0,155.75,155.7,10.37166435]
[1727689918003,2.0,155.75,155.67,20.0]
[1727689918206,16.0588,155.72,155.68,10.37166435]
[1727689919127,2.0,155.71,155.68,10.37166435]
[1727689919358,2.0,155.71,155.66,10.37166435]
[1727689919630,2.0,155.67,155.55,14.4879457]
[1727689919836,2.0,155.69,155.57,31.2849254]
[1727689920007,2.0,155.67,155.63,10.37166435]
[1727689921136,2.0,155.69,155.65,10.37166435]
[1727689921314,2.0,155.66,155.58,20.0]
[1727689921508,2.0,155.66,155.63,10.37166435]
[1727689921810,16.2638,155.65,155.62,10.37166435]
[1727689922234,16.2638,155.65,155.56,1.0769364]
[1727689922425,2.0,155.64,155.56,1.0769364]
[1727689922626,2.0,155.64,155.59,10.37166435]
[1727689922839,2.0,155.64,155.62,6.4258]
[1727689923225,2.0,155.62,155.61,6.4261]
[1727689923531,2.0,155.62,155.6,6.4267]
[1727689923939,2.0,155.62,155.59,10.37166435]
[1727689924232,2.0,155.62,155.61,6.4263]
[1727689924735,2.0,155.62,155.59,10.37166435]
[1727689924947,2.0,155.62,155.6,6.4265]
[1727689925309,2.0,155.62,155.57,10.37166435]
[1727689925522,2.0,155.62,155.6,6.4265]
[1727689925919,2.0,155.62,155.61,6.4263]
[1727689926210,22.0,155.64,155.62,6.4258]
[1727689926639,22.0,155.64,155.63,6.4254]
[1727689928240,2.0,155.64,155.63,6.4254]
[1727689929630,2.0,155.64,155.57,24.027864]
[1727689929828,2.0,155.62,155.57,16.25366911]
[1727689931017,2.0,155.64,155.62,6.4258]
[1727689931519,2.0,155.62,155.61,6.4262]
[1727689931911,2.0,155.62,155.6,6.4266]
[1727689932240,2.0,155.62,155.61,6.4263]
[1727689932443,2.0,155.62,155.56,1.0769364]
[1727689932821,2.0,155.6,155.56,1.0769364]
[1727689933036,25.16896872,155.7,155.56,1.0769364]
[1727689933037,2.0,155.58,155.56,1.0769364]
[1727689933237,16.0602,155.67,155.48,5.0]
[1727689933238,23.902374,155.54,155.48,5.0]
[1727689933419,2.0,155.53,155.48,5.0]
[1727689933619,2.0,155.51,155.48,5.0]
[1727689933824,2.0,155.53,155.48,5.0]
[1727689934132,2.0,155.53,155.49,16.25366911]
[1727689934322,23.2516,155.55,155.48,5.0]
[1727689934323,2.0,155.54,155.48,5.0]
[1727689934519,23.2516,155.55,155.48,21.25366911]
[1727689935116,2.0,155.56,155.48,21.25366911]
[1727689935316,2.0,155.55,155.51,16.25366911]
[1727689935833,2.0,155.57,155.51,16.25366911]
[1727689936342,2.0,155.57,155.5,0.12549]
[1727689936343,2.0,155.57,155.53,16.25366911]
[1727689936722,2.0,155.57,155.54,20.0]
[1727689938325,24.6241,155.59,155.54,20.0]
[1727689938843,24.6241,155.59,155.55,16.25366911]
[1727689939038,2.0,155.61,155.56,1.28552414]
[1727689939228,2.0,155.61,155.55,16.25366911]
[1727689940147,2.0,155.59,155.55,16.25366911]
[1727689941225,2.0,155.57,155.51,16.25366911]
[1727689941538,20.0,155.62,155.55,16.25366911]
[1727689941539,2.0,155.59,155.55,16.25366911]
[1727689941850,2.0,155.59,155.55,17.53921949]
[1727689942455,2.0,155.61,155.57,16.25366911]
[1727689942631,2.0,155.61,155.55,16.25366911]
[1727689943435,2.0,155.58,155.55,16.25366911]
[1727689945563,28.0501,155.63,155.49,20.0]
[1727689945564,2.0,155.6,155.57,16.25366911]
[1727689945849,2.0,155.62,155.59,16.25366911]
[1727689946643,2.0,155.62,155.61,16.25366911]
[1727689946850,2.0,155.64,155.61,16.25366911]
[1727689947533,2.0,155.62,155.61,16.25366911]
[1727689948360,20.0,155.66,155.52,16.25366911]
[1727689948361,2.0,155.64,155.59,16.25366911]
[1727689948654,2.0,155.64,155.61,16.25366911]
[1727689951446,2.0,155.66,155.63,16.25366911]
[1727689955539,2.0,155.66,155.64,10.39418148]
[1727689958142,2.0,155.68,155.64,10.39418148]
[1727689958346,2.0,155.68,155.67,10.39418148]
[1727689958748,2.0,155.7,155.67,10.39418148]
[1727689959067,2.0,155.7,155.69,10.39418148]
[1727689959638,2.0,155.7,155.59,44.027864]
[1727689959868,2.0,155.68,155.59,44.027864]
[1727689960065,2.0,155.68,155.67,10.39418148]
[1727689960245,2.0,155.7,155.67,10.39418148]
[1727689960562,2.0,155.7,155.69,10.39418148]
[1727689961834,2.0,155.75,155.69,10.39418148]
[1727689962040,2.0,155.73,155.72,10.39418148]
[1727689962966,2.0,155.75,155.72,10.39418148]
[1727689963262,2.0,155.75,155.74,10.39418148]
[1727689963572,2.0,155.75,155.72,16.21925399]
[1727689965276,2.0,155.73,155.7,16.21925399]
[1727689966961,2.0,155.75,155.71,1.28430027]
[1727689967273,2.0,155.75,155.7,16.21925399]
[1727689967874,2.0,155.79,155.74,16.21925399]
[1727689968078,2.0,155.79,155.76,16.21925399]
[1727689968255,2.0,155.81,155.76,16.21925399]
[1727689968454,2.0,155.81,155.77,1.28384489]
[1727689968657,2.0,155.79,155.76,16.21925399]
[1727689969658,2.0,155.81,155.77,1.28383145]
[1727689969858,2.0,155.81,155.78,16.21925399]
[1727689970260,18.0444,155.83,155.8,16.21925399]
[1727689970575,7.74569992,155.91,155.72,4.07468862]
[1727689970576,2.0,155.85,155.82,16.21925399]
[1727689970782,24.6368,155.87,155.82,16.21925399]
[1727689970970,2.0,155.89,155.84,16.21925399]
[1727689971283,2.0,155.89,155.86,16.21925399]
[1727689971875,23.8918,155.91,155.87,1.28298197]
[1727689972080,23.8918,155.91,155.86,16.21925399]
[1727689972081,17.8882,155.91,155.86,16.21925399]
[1727689973075,2.0,155.93,155.88,16.21925399]
[1727689973260,2.0,155.93,155.89,1.28281539]
[1727689974201,2.0,155.93,155.88,16.21925399]
[1727689974792,24.1943382,155.95,155.9,16.21925399]
[1727689975001,24.1943382,155.95,155.91,1.2826267]
[1727689975192,2.8063382,155.95,155.9,16.21925399]
[1727689975505,2.8063382,155.95,155.92,16.21925399]
[1727689975680,0.8063382,155.95,155.94,16.21925399]
[1727689981794,2.8063382,155.95,155.9,16.21925399]
[1727689981991,2.0,155.93,155.9,16.21925399]
[1727689982394,2.0,155.93,155.88,16.21925399]
[1727689982605,0.8063382,155.95,155.88,16.21925399]
[1727689982606,2.0,155.91,155.88,16.21925399]
[1727689982816,2.0,155.89,155.84,16.21925399]
[1727689983712,2.0,155.87,155.84,16.21925399]
[1727689984825,2.0,155.87,155.85,1.28309147]
[1727689985408,2.0,155.91,155.86,16.21925399]
[1727689985705,2.0,155.91,155.88,16.21925399]
[1727689985913,2.0,155.93,155.89,1.28275268]
[1727689986405,2.8063382,155.95,155.9,16.21925399]
[1727689986611,2.0,155.93,155.9,16.21925399]
[1727689986810,2.0,155.93,155.88,16.21925399]
[1727689987197,2.0,155.91,155.88,16.21925399]
[1727689987501,2.0,155.91,155.87,44.027864]
[1727689987689,2.0,155.91,155.86,16.21925399]
[1727689988699,2.0,155.93,155.87,24.027864]
[1727689989189,2.0,155.93,155.88,1.28272893]
[1727689989383,27.2187382,155.95,155.88,1.28272893]
[1727689989384,2.0,155.91,155.88,1.28272893]
[1727689989603,2.0,155.91,155.87,20.0]
[1727689990500,2.0,155.93,155.88,1.28276444]
[1727689991009,2.0,155.93,155.89,24.027864]
[1727689991992,2.0,155.9,155.88,16.21925399]
[1727689992188,2.0,155.9,155.87,20.0]
[1727689992395,2.0,155.9,155.86,16.21925399]
[1727689993310,2.0,155.9,155.85,0.12549]
[1727689993610,2.0,155.9,155.85,44.027864]
[1727689993794,2.0,155.9,155.86,23.776884]
[1727689994513,2.0,155.92,155.87,1.28284367]
[1727689994714,2.0,155.9,155.87,1.28284367]
[1727689995089,2.0,155.92,155.87,1.28284367]
[1727689995915,6.4128,155.94,155.86,36.21925399]
[1727689995916,2.0,155.9,155.86,36.21925399]
[1727689996809,2.0,155.9,155.87,1.28284498]
[1727689997014,2.0,155.9,155.86,36.21925399]
[1727689997910,2.0,155.9,155.87,1.28282978]
[1727689998118,2.0,155.92,155.87,1.28282978]
[1727689998911,2.0,155.92,155.87,24.027864]
[1727690001110,2.0,155.9,155.86,36.21925399]
[1727690001309,2.0,155.9,155.86,16.21925399]
[1727690002408,2.0,155.9,155.86,23.902374]
[1727690003020,2.0,155.9,155.86,0.12549]
[1727690003515,2.0,155.9,155.86,20.12549]
[1727690003714,2.0,155.88,155.82,16.21925399]
[1727690005521,2.0,155.88,155.83,20.0]
[1727690006314,2.0,155.9,155.85,16.21925399]
[1727690006516,2.0,155.9,155.85,16.34474399]
[1727690006930,2.0,155.9,155.86,0.12549]
[1727690007734,2.0,155.93,155.88,24.027864]
[1727690010216,2.0,155.93,155.88,20.25098]
[1727690010604,2.0,155.91,155.88,20.0]
[1727690010906,2.0,155.91,155.87,16.21925399]
[1727690011108,2.0,155.91,155.86,20.12549]
[1727690011307,2.0,155.89,155.86,20.0]
[1727690011519,2.0,155.89,155.83,16.21925399]
[1727690011717,2.0,155.89,155.77,4.81834194]
[1727690011718,2.0,155.87,155.81,16.21925399]
[1727690012243,2.0,155.89,155.82,1.28307046]
[1727690012433,2.0,155.89,155.83,16.21925399]
[1727690012627,2.0,155.89,155.84,1.28296517]
[1727690012952,2.0,155.89,155.84,21.28296517]
[1727690015050,2.0,155.89,155.85,25.31083872]
[1727690015219,16.6425382,155.95,155.86,20.0]
[1727690015220,2.0,155.91,155.86,20.0]
[1727690015640,2.0,155.91,155.87,24.027864]
[1727690016328,2.0,155.91,155.88,20.0]
[1727690016926,2.0,155.94,155.89,1.28271669]
[1727690017157,16.6425382,155.95,155.93,16.21925399]
[1727690017448,0.8063382,155.95,155.94,20.0]
[1727690018034,0.8063382,155.95,155.93,16.21925399]
[1727690018421,0.8063382,155.95,155.9,0.12549]
[1727690018637,2.0,155.93,155.9,20.0]
[1727690018837,2.8063382,155.95,155.9,20.0]
[1727690019037,2.0,155.93,155.9,20.0]
[1727690020129,0.8063382,155.95,155.88,20.0]
[1727690020130,2.0,155.91,155.88,20.0]
[1727690020749,2.0,155.91,155.87,16.21925399]
[1727690021045,2.0,155.91,155.81,15.5989]
[1727690021046,2.0,155.91,155.85,16.21925399]
[1727690021249,2.0,155.89,155.85,16.21925399]
[1727690021627,2.0,155.89,155.83,16.21925399]
[1727690022725,2.0,155.89,155.84,0.12549]
[1727690022942,2.0,155.89,155.84,44.027864]
[1727690023561,2.0,155.92,155.88,20.0]
[1727690023729,2.0,155.92,155.89,1.28278614]
[1727690024559,2.0,155.9,155.88,20.0]
[1727690026045,2.0,155.9,155.87,16.21925399]
[1727690026462,2.0,155.9,155.88,20.0]
[1727690028065,2.0,155.88,155.86,20.0]
[1727690028471,2.0,155.88,155.84,20.0]
[1727690031667,2.0,155.88,155.83,16.34474399]
[1727690032165,2.0,155.88,155.84,20.0]
[1727690032368,2.0,155.86,155.84,20.0]
[1727690032743,2.0,155.86,155.82,0.12549]
[1727690033080,2.0,155.86,155.82,20.12549]
[1727690033241,2.0,155.86,155.82,20.0]
[1727690033437,2.0,155.84,155.82,20.0]
[1727690034054,2.0,155.84,155.81,16.21925399]
[1727690034645,2.0,155.84,155.79,16.21925399]
[1727690034946,2.0,155.84,155.8,20.12549]
[1727690035553,2.0,155.8,155.7,17.62113385]
[1727690035748,2.0,155.8,155.76,16.21925399]
[1727690036268,6.5909,155.83,155.78,16.21925399]
[1727690036269,2.0,155.82,155.78,16.21925399]
[1727690036762,6.5909,155.83,155.8,16.21925399]
[1727690036965,2.0,155.84,155.81,20.0]
[1727690039056,2.0,155.82,155.81,20.0]
[1727690039368,2.0,155.82,155.79,20.0]
[1727690039969,2.0,155.8,155.77,20.0]
[1727690040267,2.0,155.8,155.75,20.0]
[1727690040469,16.0365,155.9,155.74,16.21925399]
[1727690040470,2.0,155.78,155.74,16.21925399]
[1727690042076,2.0,155.78,155.75,20.0]
[1727690042850,23.5274,155.8,155.76,17.50303567]
[1727690043672,2.0,155.8,155.78,16.21925399]
[1727690043864,2.0,155.82,155.79,1.28355233]
[1727690044476,2.0,155.8,155.78,16.21925399]
[1727690045156,2.0,155.83,155.79,21.40907581]
[1727690045356,2.0,155.83,155.8,16.21925399]
[1727690046272,2.0,155.81,155.78,20.0]
[1727690047880,2.0,155.79,155.76,20.0]
[1727690048674,2.0,155.83,155.78,20.0]
[1727690048863,2.0,155.83,155.81,20.0]
[1727690049072,2.0,155.83,155.82,17.50262689]
[1727690049481,2.0,155.83,155.82,37.50262689]
[1727690049671,2.0,155.83,155.82,36.21925399]
[1727690051375,2.0,155.83,155.8,16.21925399]
[1727690051575,2.0,155.83,155.81,21.28340935]
[1727690052562,2.0,155.83,155.82,16.21925399]
[1727690052764,8.6039,155.86,155.82,17.502574]
[1727690053081,8.6039,155.86,155.73,20.0]
[1727690053082,2.0,155.86,155.84,16.21925399]
[1727690053269,2.0,155.86,155.85,1.28315632]
[1727690053677,2.0,155.86,155.84,16.21925399]
[1727690055584,2.0,155.86,155.85,1.28309339]
[1727690055994,17.8753,155.88,155.85,1.28309339]
[1727690056163,17.8753,155.88,155.84,16.21925399]
[1727690057471,2.0,155.86,155.84,16.21925399]
[1727690058991,2.0,155.86,155.82,16.21925399]
[1727690059489,2.0,155.79,155.75,16.21925399]
[1727690059692,2.0,155.81,155.76,31.28354315]
[1727690060085,2.0,155.81,155.76,1.28354315]
[1727690060884,2.0,155.81,155.77,0.12549]
[1727690061995,2.0,155.81,155.77,0.25098]
[1727690064713,2.0,155.79,155.76,20.0]
[1727690064921,2.0,155.79,155.74,20.0]
[1727690065208,2.0,155.79,155.75,1.28374223]
[1727690065893,2.0,155.79,155.74,20.0]
[1727690066310,2.0,155.79,155.75,0.25098]
[1727690069793,2.0,155.79,155.76,21.28369627]
[1727690070307,2.0,155.81,155.77,16.47023399]
[1727690070515,2.0,155.81,155.78,1.28351958]
[1727690071199,2.0,155.81,155.77,20.56611444]
[1727690072916,8.0381,155.83,155.79,0.25098]
[1727690073217,8.0381,155.83,155.8,1.28340547]
[1727690074116,2.0,155.83,155.8,21.28340547]
[1727690074489,17.5975,155.85,155.81,1.53432604]
[1727690074808,17.5975,155.85,155.81,17.75358003]
[1727690075013,17.5975,155.85,155.81,16.47023399]
[1727690077513,17.5975,155.85,155.79,4.09831092]
[1727690077514,2.0,155.9,155.86,20.25098]
[1727690077827,15.8635,155.91,155.88,16.21925399]
[1727690078401,15.8635,155.91,155.89,1.28273685]
[1727690078795,15.8635,155.91,155.88,16.21925399]
[1727690078796,2.0,155.9,155.88,16.21925399]
[1727690079701,2.0,155.9,155.89,1.2827759]
[1727690080315,15.8635,155.91,155.89,1.2827759]
[1727690080809,2.0,155.9,155.89,1.2827759]
[1727690081521,2.0,155.9,155.88,16.21925399]
[1727690082905,15.8635,155.91,155.89,1.28278267]
[1727690083125,2.0,155.9,155.89,1.28278267]
[1727690083322,15.8635,155.91,155.89,1.28278267]
[1727690083899,2.0,155.9,155.88,16.21925399]
[1727690084122,15.8635,155.91,155.89,1.28274495]
[1727690084323,2.0,155.9,155.89,1.28274495]
[1727690084529,2.0,155.9,155.88,16.21925399]
[1727690085402,2.0,155.92,155.89,1.28274653]
[1727690085620,2.0,155.92,155.89,0.25098]
[1727690086316,2.0,155.94,155.9,1.28256505]
[1727690086909,2.0,155.92,155.89,0.25098]
[1727690088027,2.0,155.92,155.88,16.21925399]
[1727690088709,2.0,155.9,155.86,36.21925399]
[1727690089029,2.0,155.9,155.87,0.12549]
[1727690090329,2.0,155.9,155.87,0.25098]
[1727690092533,2.0,155.9,155.88,1.28273146]
[1727690093418,2.0,155.9,155.87,0.25098]
[1727690095121,2.0,155.9,155.86,36.21925399]
[1727690096523,2.0,155.9,155.87,0.25098]
[1727690098930,2.0,155.9,155.87,0.12549]
[1727690099234,2.0,155.9,155.86,36.21925399]
[1727690099235,2.0,155.88,155.84,16.21925399]
[1727690099449,2.0,155.88,155.85,20.0]
[1727690099936,20.0,155.94,155.82,16.21925399]
[1727690099937,2.0,155.86,155.82,16.21925399]
[1727690101307,2.0,155.84,155.82,16.21925399]
[1727690102039,2.0,155.84,155.83,1.28322825]
[1727690102237,2.0,155.84,155.81,20.0]
[1727690102548,2.0,155.84,155.82,17.50248291]
[1727690102728,2.0,155.86,155.83,0.12549]
[1727690102929,2.0,155.88,155.84,1.28304097]
[1727690103135,2.0,155.86,155.84,1.28304097]
[1727690103855,2.0,155.88,155.84,1.28304097]
[1727690104446,2.0,155.86,155.84,1.28304097]
[1727690104656,2.0,155.86,155.83,20.25098]
[1727690105937,2.0,155.86,155.83,20.12549]
[1727690106335,2.0,155.86,155.83,20.0]
[1727690106541,2.0,155.84,155.81,0.25098]
[1727690106828,2.0,155.82,155.77,16.21925399]
[1727690108354,2.0,155.82,155.78,0.25098]
[1727690108539,2.0,155.82,155.78,0.12549]
[1727690108851,2.0,155.8,155.77,16.21925399]
[1727690109631,2.0,155.8,155.75,16.21925399]
[1727690110032,2.0,155.8,155.76,20.0]
[1727690110232,2.0,155.8,155.77,1.28357513]
[1727690110735,2.0,155.8,155.78,0.12549]
[1727690110937,2.0,155.82,155.79,1.28349143]
[1727690111532,2.0,155.82,155.78,0.25098]
[1727690115653,2.0,155.82,155.79,1.28345682]
[1727690115857,16.0307,155.83,155.8,20.25098]
[1727690116034,2.0,155.84,155.81,17.50254469]
[1727690116229,2.0,155.86,155.82,0.12549]
[1727690116434,2.0,155.86,155.83,1.28316789]
[1727690116933,2.0,155.86,155.82,0.25098]
[1727690119133,2.0,155.86,155.84,0.25098]
[1727690119352,2.0,155.86,155.85,1.28306512]
[1727690119756,2.0,155.86,155.83,16.21925399]
[1727690120145,2.0,155.86,155.84,1.2830895]
[1727690120761,2.0,155.84,155.82,20.12549]
[1727690120941,2.0,155.84,155.8,0.12549]
[1727690121136,2.0,155.84,155.8,20.0]
[1727690121339,2.0,155.82,155.78,20.0]
[1727690121665,6.1575,155.84,155.78,20.0]
[1727690121666,2.0,155.8,155.78,10.37524623]
[1727690123560,2.0,155.78,155.74,16.213301]
[1727690125263,2.0,155.78,155.75,21.28371625]
[1727690125568,17.489,155.8,155.75,21.28371625]
[1727690125770,2.0,155.78,155.75,20.0]
[1727690126071,2.0,155.76,155.75,20.0]
[1727690126659,2.0,155.76,155.74,0.12549]
[1727690126970,2.0,155.76,155.73,20.25098]
[1727690127573,2.0,155.76,155.74,1.28382489]
[1727690127861,2.0,155.76,155.73,20.25098]
[1727690128064,2.0,155.76,155.73,20.12549]
[1727690128271,2.0,155.74,155.7,16.213301]
[1727690130663,2.0,155.74,155.71,20.0]
[1727690130868,2.0,155.74,155.72,1.28407682]
[1727690131254,2.0,155.74,155.71,20.0]
[1727690131460,2.0,155.74,155.72,0.25098]
[1727690133180,2.0,155.74,155.73,1.2839901]
[1727690133677,2.0,155.76,155.73,1.2839901]
[1727690134386,2.0,155.74,155.73,1.2839901]
[1727690134558,2.0,155.74,155.72,16.464281]
[1727690134884,2.0,155.76,155.73,1.28398712]
[1727690136372,2.0,155.74,155.73,1.28398712]
[1727690136788,2.0,155.76,155.73,1.28398712]
[1727690138879,8.3738,155.78,155.74,0.25098]
[1727690139179,8.3738,155.78,155.75,1.28382757]
[1727690141174,2.0,155.78,155.76,0.25098]
[1727690141875,2.0,155.76,155.73,20.0]
[1727690142472,2.0,155.76,155.74,1.40942747]
[1727690142800,2.0,155.78,155.74,16.338791]
[1727690143986,2.0,155.78,155.75,1.40924548]
[1727690144369,2.0,155.76,155.74,0.12549]
[1727690144567,2.0,155.74,155.7,16.213301]
[1727690144766,2.0,155.76,155.72,16.213301]
[1727690144971,2.0,155.78,155.74,16.213301]
[1727690145185,2.0,155.76,155.74,16.213301]
[1727690145477,2.0,155.76,155.71,20.0]
[1727690145478,2.0,155.76,155.75,1.28385093]
[1727690145683,2.0,155.76,155.75,11.66297942]
[1727690146597,2.0,155.76,155.75,10.63010849]
[1727690146759,2.0,155.78,155.75,10.63010849]
[1727690147980,2.0,155.78,155.77,10.37912849]
[1727690149362,2.0,155.8,155.77,10.50461849]
[1727690149580,2.0,155.8,155.72,15.4311]
[1727690149581,2.0,155.8,155.79,10.63010849]
[1727690151587,2.0,155.8,155.79,10.50461849]
[1727690153084,2.0,155.82,155.79,10.63010849]
[1727690153389,2.0,155.82,155.81,10.37912849]
[1727690159088,2.0,155.82,155.81,10.50461849]
[1727690159265,2.0,155.82,155.81,10.63010849]
[1727690161498,2.0,155.85,155.82,0.12549]
[1727690161700,2.0,155.85,155.83,10.37912849]
[1727690161878,2.0,155.85,155.84,1.28311927]
[1727690162580,2.0,155.85,155.83,10.37912849]
[1727690163188,2.0,155.85,155.82,0.25098]
[1727690163396,2.0,155.82,155.81,10.37912849]
[1727690165702,2.0,155.79,155.78,10.37912849]
[1727690165907,2.0,155.81,155.78,10.37912849]
[1727690166089,2.0,155.81,155.8,10.37912849]
[1727690168881,2.0,155.79,155.78,10.37912849]
[1727690169203,2.0,155.77,155.76,10.37912849]
[1727690169897,2.0,155.75,155.74,30.37912849]
[1727690170109,2.0,155.75,155.66,16.1982]
[1727690170281,2.0,155.75,155.74,10.37912849]
[1727690171374,2.0,155.73,155.66,16.1982]
[1727690171575,2.0,155.73,155.72,10.37912849]
[1727690172000,2.0,155.75,155.72,10.37912849]
[1727690172213,2.0,155.75,155.74,10.37912849]
[1727690176106,2.0,155.75,155.74,30.63010849]
[1727690176312,2.0,155.8,155.75,44.027864]
[1727690176608,2.0,155.8,155.79,10.63010849]
[1727690178576,2.0,155.8,155.79,10.37912849]
[1727690181012,2.0,155.8,155.76,0.25098]
[1727690181197,2.0,155.8,155.79,10.37912849]
[1727690181912,2.0,155.8,155.77,10.37912849]
[1727690182486,2.0,155.8,155.78,1.28360672]
[1727690184010,2.0,155.8,155.78,0.25098]
[1727690184310,2.0,155.82,155.79,11.78819358]
[1727690184515,2.0,155.8,155.78,0.12549]
[1727690184823,2.0,155.76,155.74,10.37912849]
[1727690185108,2.0,155.76,155.75,20.0]
[1727690186015,2.0,155.76,155.74,10.37912849]
[1727690186523,2.0,155.76,155.75,0.25098]
[1727690187098,2.0,155.76,155.74,10.37912849]
[1727690187623,2.0,155.76,155.73,0.12549]
[1727690188319,2.0,155.76,155.73,0.25098]
[1727690190918,2.0,155.74,155.73,0.25098]
[1727690192697,2.0,155.74,155.71,20.0]
[1727690193032,16.4713,155.8,155.61,4.90855239]
[1727690193033,15.7249,155.72,155.61,4.90855239]
[1727690193196,15.7249,155.72,155.67,10.37912849]
[1727690193197,2.0,155.7,155.67,10.37912849]
[1727690193606,2.0,155.7,155.65,10.37912849]
[1727690194415,2.0,155.7,155.66,20.0]
[1727690195312,2.0,155.68,155.63,20.0]
[1727690195508,2.0,155.68,155.66,20.0]
[1727690196910,2.0,155.68,155.67,0.25098]
[1727690198123,2.0,155.68,155.66,0.25098]
[1727690198324,2.0,155.66,155.61,20.0]